Cogmind - Beta 15 @@@ ROGUE MODE // 2025.07.16 @ 04:01:50 Player: Carpathian Result: Self-destructed Performance ------------- Evolutions (1) 500 Regions Visited (3) 600 Robots Destroyed (19) 95 Value Destroyed (465) 465 Prototype IDs (2) 40 Alien Tech Used (0) 0 Bonus (0) 0 TOTAL SCORE: 1700 Bonus ------- None Cogmind --------- Core Integrity 194/400 Matter 300/300 Energy 100/100 System Corruption 0% Temperature Cool (0) Movement Treading (160) Location -9/Mines Parts ------- > --- POWER (1) -------- (None) > --- PROPULSION (2) --- Light Treads > --- UTILITY (4) ------ Medium Storage Unit > --- WEAPON (2) ------- (None) > --- INVENTORY (10) --- Aluminum Leg Aluminum Leg Peak State ------------ > --- POWER ------------ Ion Engine > --- PROPULSION ------- Light Treads Light Treads > --- UTILITY ---------- Small Storage Unit > --- WEAPON ----------- Medium Laser Assault Rifle > --- INVENTORY -------- Light Ion Engine [Rating: 6] Favorites ----------- Power Ion Engine Engine Ion Engine Propulsion Light Treads Treads Light Treads Utility Medium Storage Unit Storage Medium Storage Unit Weapon Assault Rifle Energy Gun Medium Laser Ballistic Gun Assault Rifle Build | -11 -10 -9 -9 ------- Run | Yrd Mat Mat Min Slots Evolved 2 | . . 2 . Power . | . . . . Propulsion . | . . . . Utility 2 | . . 2 . Weapon . | . . . . Parts Attached 11 | 6 1 4 . Power 2 | 1 . 1 . Engine 2 | 1 . 1 . Core . | . . . . Reactor . | . . . . Propulsion 4 | 2 . 2 . Treads 4 | 2 . 2 . Leg . | . . . . Wheel . | . . . . Hover . | . . . . Flight . | . . . . Utility 2 | 1 1 . . Device . | . . . . Storage 2 | 1 1 . . Processor . | . . . . Hackware . | . . . . Protection . | . . . . Artifact . | . . . . Weapon 3 | 2 . 1 . Energy Gun 1 | 1 . . . Energy Cannon . | . . . . Ballistic Gun 2 | 1 . 1 . Ballistic Cannon . | . . . . Launcher . | . . . . Special Weapon . | . . . . Impact Weapon . | . . . . Slashing Weapon . | . . . . Piercing Weapon . | . . . . Special Melee Weapon . | . . . . Unidentified Prototypes . | . . . . Parts Lost 4 | . . 3 1 Power 1 | . . 1 . Propulsion 1 | . . . 1 Utility . | . . . . Weapon 2 | . . 2 . Highest Loss Streak 3 | . . 3 1 To Critical Strikes . | . . . . Average Backups 2 | 1 3 2 2 Power . | . 1 . . Propulsion 1 | . 2 2 2 Utility . | . . . . Weapon . | . . . . Tool/Special . | . . . . Unused Backups 2 | . . . 2 Power . | . . . . Propulsion 2 | . . . 2 Utility . | . . . . Weapon . | . . . . Tool/Special . | . . . . Average Slot Usage (%) 71 | . 85 63 31 Engine 11 | . 14 10 . Treads 24 | . 28 22 20 Storage 12 | . 14 11 11 Energy Gun 11 | . 14 9 . Ballistic Gun 11 | . 14 10 . Peak Build Rating 6 | 6 6 6 3 Average Rating 5 | 4 6 5 2 On Entrance 3 | . 6 6 3 Naked Turns . | . . . . Heaviest Build 19 | 14 19 19 10 Greatest Support 40 | 40 40 40 40 Greatest Overweight (x) . | . . . . Average Overweight (x) . | . . . . Largest Inventory Capacity 10 | 8 10 10 10 Average Capacity 8 | 6 8 10 10 Most Carried 5 | 3 5 5 2 Average Carried 2 | 1 3 2 2 Final Capacity 10 | 8 10 10 10 Final Carried 4 | 3 4 2 2 Class Distribution -------------------- 100% | Mutant Dominant Class ---------------- Mutant | -10/Materials Mutant | -9/Materials Mutant | -9/Mines Resources | -11 -10 -9 -9 ----------- Run | Yrd Mat Mat Min Matter Collected 436 | 235 95 106 . Remotely . | . . . . Salvage Created 646 | . 221 425 . Parts 35 | . 10 25 . Haulers Intercepted . | . . . . Recyclers Shooed 1 | . . 1 . Parts Field Recycled . | . . . . Retrieved Matter . | . . . . Parts Self-Destructed . | . . . . Prevented . | . . . . Kills | -11 -10 -9 -9 ------- Run | Yrd Mat Mat Min Combat Hostiles Destroyed 17 | . 7 10 . Guns 17 | . 7 10 . Classes Destroyed 5 | . 2 3 . Worker 1 | . . 1 . Recycler 1 | . . 1 . Swarmer 7 | . 3 4 . Grunt 8 | . 4 4 . Sentry 2 | . . 2 . Best Kill Streak 7 | . 4 7 . Combat Bots Only 5 | . 4 5 . Max Kills in Single Turn 2 | . 1 2 . Gunslinging 1 | . . 1 . Exploded . | . . . . Melee . | . . . . Uniques/NPCs Destroyed . | . . . . Combat | -11 -10 -9 -9 -------- Run | Yrd Mat Mat Min Hostile Shots Fired 136 | . 37 57 42 Missed 40 | . 11 18 11 Hits 96 | . 26 39 31 Projectile 96 | . 26 39 31 Critical Strikes 4 | . . 4 . Damage Taken 1009 | . 255 499 255 Core 247 | . 41 80 126 Absorbed by Shields . | . . . . Core Remaining (%) 91 | 100 83 . . Volleys Fired 55 | . 20 35 . Largest 2 | . 2 2 . Hottest 70 | . 70 70 . Shots Fired 100 | . 40 60 . Gun 100 | . 40 60 . Cannon . | . . . . Launcher . | . . . . Special . | . . . . Kinetic 55 | . 20 35 . Thermal 45 | . 20 25 . Explosive . | . . . . Electromagnetic . | . . . . Robot Hit Streak 16 | . 7 16 . Robot Miss Streak 3 | . 2 3 . Penetration Max . | . . . . Secondary Targets 4 | . 2 2 . Max Gunslinging Chain 1 | . 1 1 . Shots Hit Robots 68 | . 27 41 . Core Hits 34 | . 12 22 . Critical Kills . | . . . . Critical Parts Destroyed . | . . . . Critical Strikes 4 | . 1 3 . Burn 4 | . 1 3 . Melee Attacks . | . . . . Impact . | . . . . Slashing . | . . . . Piercing . | . . . . Sneak Attacks . | . . . . Combat Hostiles . | . . . . Follow-up Attacks . | . . . . Damage Inflicted 883 | . 344 518 21 Guns 862 | . 344 518 . Cannons . | . . . . Explosions . | . . . . Melee . | . . . . Ramming 21 | . . . 21 Kinetic 466 | . 181 285 . Thermal 396 | . 163 233 . Explosive . | . . . . Electromagnetic . | . . . . Impact . | . . . . Slashing . | . . . . Piercing . | . . . . Highest Corruption . | . . . . Average Corruption . | . . . . Corruption Purged . | . . . . Corruption Blocked . | . . . . Overload Shots . | . . . . Overflow Damage . | . . . . Projectiles . | . . . . Explosions . | . . . . Melee . | . . . . Knockbacks . | . . . . Impact . | . . . . Kinetic . | . . . . Secondary . | . . . . Self-Inflicted Damage . | . . . . Shots . | . . . . Rammed 14 | . . . 14 Targets Rammed 14 | . . . 14 Kicked . | . . . . Crushed . | . . . . Highest Temperature 204 | . 204 84 . Average Temperature 60 | . 78 33 . Received Heat Transfer 396 | . 87 309 . Siege Activations . | . . . . Martial Activations . | . . . . Shielding Activations . | . . . . Robots Disrupted . | . . . . Combat Hostiles . | . . . . Robots Corrupted . | . . . . Combat Hostiles . | . . . . Parts Fried . | . . . . Impact Corruptions . | . . . . Robots Melted . | . . . . Combat Hostiles . | . . . . Parts Melted 3 | . 1 2 . Heat Transferred 1480 | . 555 925 . Parts Sabotaged . | . . . . Parts Stolen . | . . . . Parts Stripped . | . . . . Power Chain Reactions . | . . . . Alert | -11 -10 -9 -9 ------- Run | Yrd Mat Mat Min Maximum Alert Level 1 | . . 1 . Low Security (%) 97 | 100 100 92 100 Level 1 2 | . . 7 . Level 2 . | . . . . Level 3 . | . . . . Level 4 . | . . . . Level 5 . | . . . . High Security . | . . . . Max Security . | . . . . Peak Influence 210 | . 91 210 70 Initial 70 | . . 25 70 Average 47 | . 28 90 58 Influence Increases 487 | . 173 299 15 Destroy 0b10 Robot/C 340 | . 140 200 . Destroy 0b10 Robot/NC 10 | . . 10 . Destroy Leader 80 | . 30 50 . Successful Hack 11 | . 2 9 . Destroy Structure 1 | . 1 . . Lose Combat Pursuer 45 | . . 30 15 Influence Decreases 432 | . 112 180 140 Entered New Map 146 | . . 36 110 Time Decay 246 | . 112 114 20 Lost Part 40 | . . 30 10 Squads Dispatched 2 | . 1 1 . Investigation . | . . . . Extermination . | . . . . Reinforcement 2 | . 1 1 . Assault . | . . . . Garrison . | . . . . Intercept . | . . . . Searches Triggered . | . . . . Construction Impeded . | . . . . Haulers Reinforced . | . . . . Active Scanning Responses . | . . . . Cargo Convoy Interrupts . | . . . . Stealth | -11 -10 -9 -9 --------- Run | Yrd Mat Mat Min Distress Signals 2 | . . 2 . Communications Jammed . | . . . . Distress Signals . | . . . . Times Spotted 35 | . 9 22 4 Peak Tracking Total 8 | . 4 8 4 Tactical Retreats 2 | . . 1 1 Traps | -11 -10 -9 -9 ------- Run | Yrd Mat Mat Min Traps Triggered . | . . . . Indirectly . | . . . . Trap Hack Attempts . | . . . . Triggered . | . . . . Disarmed . | . . . . Reprogrammed . | . . . . Reused . | . . . . Traps Extracted . | . . . . Installed . | . . . . Triggered . | . . . . Machines | -11 -10 -9 -9 ---------- Run | Yrd Mat Mat Min Machines Disabled . | . . . . Max in Single Turn . | . . . . Machines Repaired . | . . . . Machines Dismantled . | . . . . Machines Sabotaged . | . . . . Overloaded Fab Kills . | . . . . Hacking | -11 -10 -9 -9 --------- Run | Yrd Mat Mat Min Machines Accessed 4 | . 1 3 . Terminals 4 | . 1 3 . Fabricators . | . . . . Repair Stations . | . . . . Recycling Units . | . . . . Scanalyzers . | . . . . Garrison Access . | . . . . Total Hacks 6 | . 2 4 . Successful 4 | . 1 3 . Failed 2 | . 1 1 . Catastrophic 1 | . . 1 . Database Lockouts . | . . . . Manual 2 | . . 2 . Terminals 6 | . 2 4 . Fabricators . | . . . . Repair Stations . | . . . . Recycling Units . | . . . . Scanalyzers . | . . . . Garrison Access . | . . . . Terminal Hacks 4 | . 1 3 . Record 2 | . 1 1 . Prototype ID Bank 1 | . . 1 . Level Access Points 1 | . . 1 . Fabricator Hacks . | . . . . Repair Station Hacks . | . . . . Recycling Unit Hacks . | . . . . Scanalyzer . | . . . . Garrison Access Hacks . | . . . . Unauthorized Hacks . | . . . . Terminals . | . . . . Fabricators . | . . . . Repair Stations . | . . . . Recycling Units . | . . . . Scanalyzers . | . . . . Garrison Access . | . . . . Data Cores Recovered . | . . . . Used . | . . . . Hacking Detections 3 | . 1 2 . Full Trace Events 1 | . . 1 . Feedback Events . | . . . . Feedback Blocked . | . . . . Robot Schematics Acquired . | . . . . Robots Built . | . . . . Authchips . | . . . . Time . | . . . . Total Robot Build Rating . | . . . . Part Schematics Acquired . | . . . . Parts Built . | . . . . Authchips . | . . . . Time . | . . . . Total Part Build Rating . | . . . . Parts Repaired . | . . . . Time . | . . . . Parts Recycled . | . . . . Recycled Matter . | . . . . Retrieved Matter . | . . . . Retrieved Components . | . . . . Parts Scanalyzed . | . . . . Part Schematics Acquired . | . . . . Parts Damaged . | . . . . Bothacking | -11 -10 -9 -9 ------------ Run | Yrd Mat Mat Min Used RIF Installer . | . . . . Robots Hacked . | . . . . Non-combat . | . . . . Combat . | . . . . Robot Hacks Applied . | . . . . Relay Couplers Released . | . . . . Fabnet Peak Effective % . | . . . . Robots Rewired . | . . . . Allies Hacked . | . . . . Hacks Repelled . | . . . . Allies | -11 -10 -9 -9 -------- Run | Yrd Mat Mat Min Total Allies . | . . . . Largest Group . | . . . . Highest-Rated Group . | . . . . Highest-Rated Ally . | . . . . Total Orders . | . . . . Ally Attacks . | . . . . Total Damage . | . . . . Kills . | . . . . Allies Corrupted . | . . . . Allies Melted . | . . . . Intel | -11 -10 -9 -9 ------- Run | Yrd Mat Mat Min Active Infowar (turns) . | . . . . Robot Analysis Total . | . . . . Derelict Logs Recovered . | . . . . Drone Launches . | . . . . Drone Recoveries . | . . . . Exploration | -11 -10 -9 -9 ------------- Run | Yrd Mat Mat Min Turns Passed 826 | 121 366 284 55 Spaces Moved 386 | 77 182 111 16 Core 15 | 15 . . . Treads 371 | 62 182 111 16 Legs . | . . . . Wheels . | . . . . Hover . | . . . . Flight . | . . . . Fastest Speed 50 | 50 160 160 160 Average Speed 155 | 138 160 160 160 Slowest Speed 160 | 160 160 160 160 Overloaded Moves . | . . . . Propulsion Burnouts . | . . . . Robots Hopped . | . . . . Potential Cave-ins . | . . . . Cave-ins Triggered . | . . . . Exploration Rate (%) 12 | 4 23 15 6 Regions Visited 3 Branch Regions 1 Pre-discovered Areas . | . . . . Known Exits Taken . | . . . . Unknown Exits Taken 3 | 1 1 1 . Scrap Searched . | . . . . Spaces Dug . | . . . . Terrain Destroyed . | . . . . Melee . | . . . . Projectile . | . . . . AOE . | . . . . Terrain Rammed . | . . . . Walls Destroyed . | . . . . Machines Disabled . | . . . . Actions | -11 -10 -9 -9 --------- Run | Yrd Mat Mat Min Total 503 | 91 217 158 37 Wait 22 | . 12 3 7 Move 383 | 76 181 110 16 Hop . | . . . . Pick Up 13 | 9 2 2 . Fast Attach . | . . . . Attach 6 | 6 . . . Detach . | . . . . Swap 5 | . 1 4 . Drop 5 | . 1 4 . Fire 55 | . 20 35 . Melee . | . . . . Ram . | . . . . Kick . | . . . . Crush 14 | . . . 14 Escape Stasis . | . . . . Rewire . | . . . . Trap . | . . . . Miscellaneous . | . . . . Route ------- -11/Scrapyard -10/Materials (discovered 2 exits: *Mat / [*Min]) -9/Materials (discovered 4 exits: Mat x3 / [*Min]) -9/Mines History --------- Turn | Location | Event 6 | -11/Scrapyard | Discovered new exit (range 15) 122 | -11/Scrapyard | Entered Materials 279 | -10/Materials | Discovered new exit (range 14) 313 | -10/Materials | Build established: Mutant 381 | -10/Materials | Discovered new exit (range 12) 488 | -10/Materials | Entered another Materials area 488 | -9/Materials | Evolved 2 slots: Utility x2 554 | -9/Materials | Identified exit to Materials 753 | -9/Materials | Discovered new exit (range 10) 772 | -9/Materials | Entered Mines 793 | -9/Mines | Lost 3 parts (1p2w) 827 | -9/Mines | Self-destructed Last Messages --------------- 00751_ Assault Rifle destroyed. 00751_ K-01 Serf collects debris. 00753_ EXIT=FOUND 00756_ K-01 Serf collects debris. 00756_ U-05 Engineer works on Matter Pump. 00758_ K-01 Serf collects debris. 00761_ U-05 Engineer completes Matter Pump. 00762_ Lgt. Ion Engine destroyed. LOCATION=UNKNOWN GOAL=ESCAPE 00773_ K-01 Serf collects debris. 00803_ Slammed into S-10 Pest. 00809_ K-01 Serf collects debris. 00810_ Slammed into S-10 Pest. 00815_ Lgt. Treads destroyed. 00816_ Slammed into S-10 Pest. 00819_ K-01 Serf collects debris. 00819_ Slammed into S-10 Pest. 00822_ K-01 Serf collects debris. 00823_ Slammed into S-10 Pest. Map ----- +----------------------------------------------------+ | ????????????????????????????????? | | ????????????????????????????????? | | ????????????????????????????????? | | ????????????????????????????????? | | ????????????????????????????????? | | ????????????????????????????????? | | ????????????????????????????????? | | ????????????????????????????????? | | ????????????????????????????????? | | ????????????????????????????????? | | ????????????????????????????????? | | ??????????????????#########?????? | | ??????????????????# #?????? | | ??????????????????# #?????? | | ????????????????### """ #?????? | | ????????????????? """ #?????? | | ??????????????????# """ #?????? | | ??????????????????# ####??? | | ??????????????????# #??? | | ??????????????????# ##????? | | ??????????????????####### #?????? | | ????????????????????????#s#?????? | | ???????????????# ???????#%#??#??? | | ???????????????# #####%## #??? | | ???????????????# %s #??? | | ???????????????# k @s #??? | | ??????????????# ####### #??? | | ???????????? ?????????? #??? | | ??????????? ?????????????? #??? | | ???????????????????????????? #??? | | ????????????????????????????##??? | | ????????????????????????????????? | | ????????????????????????????????? | | ????????????????????????????????? | | ????????????????????????????????? | | ????????????????????????????????? | | ????????????????????????????????? | | ????????????????????????????????? | | ????????????????????????????????? | | ????????????????????????????????? | | ????????????????????????????????? | | ????????????????????????????????? | | ????????????????????????????????? | | ????????????????????????????????? | | ????????????????????????????????? | | ????????????????????????????????? | | ????????????????????????????????? | | ????????????????????????????????? | | ????????????????????????????????? | | ????????????????????????????????? | +----------------------------------------------------+ Best States ------------- Heat Dissipation 28 Energy Generation 10 Energy Capacity 250 Matter Stores 300 Matter Capacity 300 Sight Range 16 Terrain Scan Density 10 Evasion (%) 50 Recoil Reduction 2 Item Schematics ----------------- None Robot Schematics ------------------ None Fabricated ------------ Nothing Repaired ---------- Nothing Alien Tech Used ----------------- None Achievements -------------- None Challenges ------------ None Game ------ Seed BehemothCoolantStripper Manual? 0 Play Time 00:04:41 Cumulative 33.2 hours Start 2025.07.16 @ 03:57:23 End 2025.07.16 @ 04:01:50 Sessions 1 Manual Loads 0 Difficulty Rogue Special Mode None Game No. 179 Rogue 179 Adventurer 0 Explorer 0 Win Type - Total 0 Types 0/0/0/0/0/0/0/0/0/0 Lore% 9 Gallery% 24 Achievement% 19 Wizard Run 0 Options --------- Layout 0 ASCII 0 Keyboard 0 Movement Arrows Keybinds 0 Fullscreen 2 Font 24/Cog Map View 76x50 Zoom Use 0% Tactical HUD 1 Map Filters NONE Filters NONE Steam 1 RUN: 5c0fe2bf-ab26-4df8-a5a4-5cb1b6e095d6